bitfinex/quotes_SOLUSD_20260102
["timestamp","ask_amount","ask_price","bid_price","bid_amount"]
[1767397232928,0.69874255,132.31,132.26,9.77272915]
[1767397233129,0.69874255,132.3,132.26,9.77272915]
[1767397233613,0.69874255,132.3,132.27,0.67203323]
[1767397234015,2.91094234,132.3,132.27,0.67203323]
[1767397236422,0.69874255,132.3,132.28,0.67203323]
[1767397236815,2.91094234,132.31,132.28,0.67203323]
[1767397238337,2.91094234,132.31,132.29,0.67203323]
[1767397238338,0.69874255,132.31,132.29,0.67203323]
[1767397238715,2.91094234,132.32,132.29,0.67203323]
[1767397239938,0.69874255,132.31,132.29,0.67203323]
[1767397241018,22.05585408,132.33,132.29,0.67203323]
[1767397241340,16.71094234,132.33,132.3,0.67203323]
[1767397244235,0.69874255,132.32,132.3,7.55857543]
[1767397244428,0.69874255,132.31,132.29,8.23107893]
[1767397245028,2.91094234,132.32,132.29,8.23107893]
[1767397247160,0.69874255,132.32,132.29,8.23107893]
[1767397247335,2.91094234,132.32,132.29,8.23107893]
[1767397249048,0.69874255,132.32,132.29,8.23107893]
[1767397249227,2.91094234,132.32,132.29,8.23107893]
[1767397252641,4.15637137,132.32,132.29,8.23107893]
[1767397254557,3.45762882,132.32,132.3,0.67203323]
[1767397255758,4.15637137,132.32,132.3,0.67203323]
[1767397258662,17.95637137,132.33,132.31,0.67203323]
[1767397258856,17.95637137,132.33,132.31,0.63424232]
[1767397259559,14.49874255,132.33,132.3,7.55853592]
[1767397260259,17.95637137,132.33,132.29,7.55915035]
[1767397260958,4.16174983,132.32,132.29,8.26268273]
[1767397264666,0.70412101,132.32,132.29,8.26268273]
[1767397264870,4.16174983,132.32,132.29,8.26268273]
[1767397267665,4.16174983,132.32,132.26,22.35887194]
[1767397267666,4.16174983,132.32,132.3,0.70353238]
[1767397267854,0.70412101,132.32,132.3,0.70353238]
[1767397269959,0.70412101,132.32,132.28,8.26274066]
[1767397270155,0.70412101,132.29,132.27,7.56020859]
[1767397270356,4.16174983,132.29,132.26,8.26412632]
[1767397271353,4.16174983,132.29,132.27,0.70353238]
[1767397271955,4.16174983,132.29,132.26,8.26412632]
[1767397290960,0.70412101,132.29,132.26,8.26412632]
[1767397291160,4.16174983,132.29,132.26,8.26412632]
[1767397293781,0.657976,132.28,132.26,8.26412632]
[1767397293982,0.657976,132.26,132.22,8.23204358]
[1767397294189,4.11560482,132.25,132.22,8.23204358]
[1767397295371,14.457976,132.27,132.24,0.66919557]
[1767397295577,17.91560482,132.27,132.24,0.66919557]
[1767397295779,14.457976,132.27,132.24,0.66919557]
[1767397296089,17.91560482,132.27,132.24,0.66919557]
[1767397296268,0.657976,132.26,132.24,0.66919557]
[1767397297288,0.657976,132.26,132.23,8.23137429]
[1767397301275,14.457976,132.27,132.24,0.66919557]
[1767397302086,17.91560482,132.27,132.24,0.66919557]
[1767397303490,17.91560482,132.27,132.24,8.23078476]
[1767397305295,4.11560482,132.27,132.24,8.23078476]
[1767397306077,0.657976,132.32,132.28,0.66919557]
[1767397306275,0.657976,132.31,132.28,0.66919557]
[1767397306601,0.657976,132.31,132.27,3.45762882]
[1767397306602,4.11560482,132.3,132.27,0.66919557]
[1767397306794,13.8,132.34,132.27,0.66919557]
[1767397307002,3.45762882,132.3,132.27,0.66919557]
[1767397307197,7.55716393,132.33,132.27,0.66919557]
[1767397307396,3.45762882,132.3,132.27,8.22923809]
[1767397307597,13.8,132.31,132.27,8.22923809]
[1767397307788,3.45762882,132.29,132.27,8.22923809]
[1767397307988,13.8,132.31,132.27,8.22923809]
[1767397308178,3.45762882,132.29,132.27,8.22923809]
[1767397308374,13.8,132.31,132.27,8.22923809]
[1767397308699,3.45762882,132.3,132.27,8.22923809]
[1767397308998,0.657976,132.3,132.27,8.22923809]
[1767397309300,13.8,132.31,132.27,8.22923809]
[1767397309521,3.45762882,132.3,132.27,8.22923809]
[1767397310198,13.8,132.31,132.27,8.22923809]
[1767397310499,3.45762882,132.3,132.27,8.22923809]
[1767397311182,3.77886234,132.3,132.27,8.22923809]
[1767397312200,13.8,132.31,132.27,8.22923809]
[1767397312399,17.25762882,132.31,132.27,8.22923809]
[1767397314514,16.01325777,132.31,132.27,8.22923809]
[1767397314714,2.21325777,132.29,132.26,7.56066602]
[1767397315013,2.21325777,132.28,132.25,7.56105495]
[1767397315183,2.21325777,132.28,132.25,8.23025052]
[1767397316087,2.21325777,132.28,132.26,7.56085141]
[1767397316313,2.21325777,132.29,132.26,7.56085141]
[1767397317889,2.18325777,132.29,132.26,7.56085141]
[1767397318817,9.77183733,132.3,132.26,0.66919557]
[1767397319613,9.77183733,132.3,132.26,8.22995248]
[1767397324023,2.21325777,132.29,132.26,8.22995248]
[1767397324190,7.55857956,132.3,132.27,0.66888864]
[1767397324191,2.21325777,132.3,132.27,0.66888864]
[1767397324398,16.01325777,132.3,132.27,0.66888864]
[1767397326096,16.01325777,132.3,132.27,8.22863872]
[1767397328728,16.01325777,132.3,132.27,0.66888864]
[1767397329901,2.21325777,132.29,132.26,0.66888864]
[1767397330126,2.21325777,132.28,132.26,0.66888864]
[1767397336109,2.18325777,132.28,132.26,0.66888864]
[1767397337219,21.35865969,132.3,132.26,0.66888864]
[1767397337421,7.26708934,132.29,132.26,0.66888864]
[1767397337614,2.21325777,132.29,132.26,0.66888864]
[1767397338015,21.35865969,132.3,132.27,0.66888864]
[1767397338230,9.61325777,132.29,132.27,0.66888864]
[1767397338435,23.41325777,132.29,132.27,0.66888864]
[1767397338816,9.61325777,132.29,132.27,0.66888864]
[1767397339635,23.41325777,132.29,132.27,0.66888864]
[1767397339839,9.61325777,132.29,132.27,0.66888864]
[1767397340030,23.41325777,132.29,132.27,0.66888864]
[1767397340414,9.61325777,132.29,132.27,0.66888864]
[1767397341108,21.2,132.29,132.27,0.66888864]
[1767397344123,7.4,132.29,132.27,0.66888864]
[1767397344837,21.2,132.29,132.27,0.66888864]
[1767397345823,23.41325777,132.29,132.27,0.66888864]
[1767397346247,9.61325777,132.29,132.27,0.66888864]
[1767397346430,23.41325777,132.29,132.27,0.66888864]
[1767397346629,9.61325777,132.29,132.27,0.66888864]
[1767397346825,23.41325777,132.29,132.27,0.66888864]
[1767397347026,9.61325777,132.29,132.27,0.66888864]
[1767397347427,23.41325777,132.29,132.27,0.66888864]
[1767397347646,9.61325777,132.29,132.27,0.66888864]
[1767397347846,23.41325777,132.29,132.27,0.66888864]
[1767397348149,9.61325777,132.29,132.27,0.66888864]
[1767397349020,23.41325777,132.29,132.27,0.66888864]
[1767397349433,30.97250238,132.29,132.27,0.66888864]
[1767397353537,30.97250238,132.29,132.26,0.70187104]
[1767397356750,30.97250238,132.29,132.25,0.70187104]
[1767397357054,2.21325777,132.27,132.24,0.70187104]
[1767397358244,2.21325777,132.26,132.24,0.70187104]
[1767397358945,2.21325777,132.26,132.23,0.70187104]
[1767397359349,16.01325777,132.26,132.23,0.70187104]
[1767397359957,2.21325777,132.25,132.23,0.70187104]
[1767397360329,9.77480614,132.25,132.22,0.70187104]
[1767397360534,2.21325777,132.24,132.22,0.70187104]
[1767397366144,7.56154837,132.25,132.22,0.70187104]
[1767397366345,9.77480614,132.25,132.22,0.70187104]
[1767397366851,7.56154837,132.25,132.22,0.70187104]
[1767397367064,9.77480614,132.25,132.22,0.70187104]
[1767397367265,23.57432353,132.26,132.23,0.70187104]
[1767397370372,13.8,132.26,132.24,0.70187104]
[1767397372378,2.21325777,132.25,132.24,0.70187104]
[1767397374550,3.46084343,132.25,132.24,0.70187104]
[1767397379271,3.46084343,132.25,132.21,18.90877765]
[1767397381376,3.46084343,132.25,132.23,8.27079836]
[1767397382376,3.46084343,132.25,132.24,0.70821801]
[1767397387679,3.46084343,132.25,132.21,18.90877765]
[1767397389880,3.46084343,132.25,132.23,8.27079836]
[1767397390083,4.17314327,132.24,132.23,7.56258035]
[1767397390284,3.46084343,132.24,132.23,7.56258035]
[1767397393685,4.17314327,132.24,132.22,7.56300522]
[1767397393868,3.46084343,132.23,132.21,8.27182553]
[1767397395061,0.71229984,132.24,132.21,8.27182553]
[1767397395263,3.46084343,132.23,132.21,8.27182553]
[1767397402700,4.17314327,132.23,132.21,8.27182553]
[1767397402894,3.46084343,132.23,132.21,8.27182553]
[1767397404393,4.17314327,132.23,132.19,52.61454192]
[1767397404595,3.46084343,132.22,132.2,8.27251453]
[1767397405394,4.17314327,132.22,132.2,7.56429652]
[1767397405572,4.14314327,132.22,132.2,7.56429652]
[1767397405997,3.43084343,132.22,132.2,8.27251453]
[1767397414917,0.71229984,132.23,132.2,8.27251453]
[1767397415213,3.46084343,132.22,132.2,8.27251453]
[1767397418518,4.13667678,132.22,132.2,0.70821801]
[1767397418690,3.46084343,132.21,132.2,0.70821801]
[1767397421729,0.67583335,132.2,132.18,8.26605672]
[1767397421901,3.46084343,132.2,132.18,8.26605672]
[1767397422221,3.46084343,132.2,132.19,0.70078549]
[1767397423000,4.13667678,132.2,132.17,8.26652545]
[1767397423816,4.13667678,132.2,132.18,0.70078549]
[1767397424421,14.47583335,132.21,132.19,0.70078549]
[1767397424623,17.93667678,132.21,132.19,0.70078549]
[1767397426845,3.46084343,132.2,132.19,0.70078549]
[1767397430137,3.46084343,132.2,132.18,0.70078549]
[1767397431822,4.13667678,132.2,132.18,8.26601744]
[1767397434625,4.13667678,132.2,132.17,8.26679895]
[1767397435027,4.13667678,132.2,132.18,0.70078549]
[1767397436026,4.13667678,132.2,132.18,7.56514815]
[1767397436537,2.89241082,132.2,132.18,7.56514815]
[1767397439722,2.21657747,132.21,132.18,0.72168477]
[1767397440448,14.4625107,132.22,132.18,0.72168477]
[1767397440741,7.5627684,132.23,132.18,0.72168477]
[1767397440742,0.6625107,132.23,132.18,0.72168477]
[1767397440942,2.87908817,132.23,132.18,0.72168477]
[1767397441622,2.21657747,132.23,132.19,0.72168477]
[1767397442152,2.21657747,132.23,132.21,0.72168477]
[1767397443662,16.67908817,132.24,132.21,0.72168477]
[1767397447040,13.8,132.24,132.23,0.72168477]
[1767397447246,2.87908817,132.25,132.22,8.28483709]
[1767397447448,2.87908817,132.24,132.22,8.28483709]
[1767397447750,2.87908817,132.24,132.22,7.56315232]
[1767397452348,0.6625107,132.24,132.22,7.56315232]
[1767397452549,2.87908817,132.24,132.22,7.56315232]
[1767397452951,2.87908817,132.25,132.22,0.72168477]
[1767397456134,2.87908817,132.25,132.22,8.28451475]
[1767397457556,0.6625107,132.25,132.22,8.28451475]
[1767397462333,16.67908817,132.26,132.23,0.72168477]
[1767397463935,16.67908817,132.26,132.23,8.28404819]
[1767397468031,14.4625107,132.26,132.23,8.28404819]
[1767397468234,16.67908817,132.26,132.23,8.28404819]
[1767397472459,0.72384089,132.24,132.22,7.56289208]
[1767397472660,0.72384089,132.24,132.22,7.56315232]
[1767397472859,2.94041836,132.24,132.22,7.56315232]
[1767397473551,2.94041836,132.24,132.22,8.25375136]
[1767397473973,0.72384089,132.24,132.22,8.25375136]
[1767397474460,0.72384089,132.24,132.21,0.69059904]
[1767397475846,0.099,132.21,132.16,33.83745205]
[1767397476049,2.21657747,132.19,132.17,7.56601346]
[1767397476448,2.21657747,132.19,132.17,8.2566125]
[1767397476748,2.73616995,132.2,132.17,8.2566125]
[1767397477166,2.21657747,132.2,132.18,0.69059904]
[1767397478369,13.8,132.21,132.19,0.69059904]
[1767397478567,2.21657747,132.21,132.19,0.69059904]
[1767397479664,0.52384089,132.22,132.19,8.25529121]
[1767397479966,2.21657747,132.21,132.19,8.25529121]
[1767397480752,2.21657747,132.21,132.2,0.69059904]
[1767397480959,2.21657747,132.22,132.2,0.69059904]
[1767397481571,2.21657747,132.21,132.19,7.56469217]
[1767397481865,2.21657747,132.21,132.17,26.48104712]
[1767397482191,2.31557747,132.22,132.17,26.48104712]
[1767397483370,2.21657747,132.21,132.17,26.48104712]
[1767397483548,2.21657747,132.21,132.19,8.25546778]
[1767397485070,2.31557747,132.22,132.19,8.25546778]
[1767397486687,2.31557747,132.22,132.17,26.48104712]
[1767397486857,0.099,132.22,132.2,0.69059904]
[1767397487180,2.31557747,132.22,132.2,0.69059904]
[1767397488984,0.72384089,132.25,132.21,0.69059904]
[1767397489148,2.80127051,132.24,132.21,0.69059904]
[1767397489347,2.21657747,132.23,132.21,0.69059904]
[1767397494157,2.21657747,132.23,132.21,8.25429151]
[1767397495685,2.93902689,132.22,132.19,26.47640317]
[1767397496087,2.21657747,132.22,132.2,0.69059904]
[1767397496490,3.46253288,132.22,132.2,0.69059904]
[1767397496959,0.72384089,132.24,132.2,0.69059904]
[1767397497159,3.46253288,132.22,132.21,8.25432341]
[1767397499877,4.16128717,132.22,132.19,27.14988147]
[1767397500178,0.69875429,132.22,132.2,0.6734783]
[1767397500574,0.60952878,132.23,132.2,0.6734783]
[1767397500783,3.46253288,132.21,132.2,0.6734783]
[1767397501280,0.60952878,132.23,132.2,0.6734783]
[1767397501473,3.46253288,132.21,132.2,8.23777482]
[1767397501678,0.60952878,132.23,132.2,8.23777482]
[1767397501878,3.46253288,132.21,132.2,8.23777482]
[1767397502781,0.60952878,132.23,132.2,8.23777482]
[1767397502988,3.46253288,132.22,132.2,8.23777482]
[1767397503361,0.69875429,132.24,132.21,0.6734783]
[1767397503581,3.46253288,132.22,132.21,0.6734783]
[1767397506982,3.46253288,132.22,132.2,8.23777482]
[1767397509892,3.46253288,132.22,132.21,0.6734783]
[1767397510787,3.46253288,132.22,132.2,0.6734783]
[1767397512104,0.60952878,132.23,132.2,8.23745839]
[1767397512388,0.69698753,132.2,132.16,34.51093035]
[1767397512590,3.46253288,132.18,132.16,42.077165]
[1767397512773,3.46253288,132.18,132.17,0.6734783]
[1767397513897,0.61127787,132.19,132.17,0.6734783]
[1767397514081,3.46253288,132.18,132.17,0.6734783]
[1767397515896,0.61127787,132.19,132.17,0.6734783]
[1767397515897,4.07381075,132.19,132.17,0.6734783]
[1767397523204,0.69875429,132.21,132.17,8.23905116]
[1767397523406,4.07206166,132.2,132.18,0.6734783]
[1767397523900,4.07206166,132.2,132.17,8.23905116]
[1767397535112,3.46253288,132.19,132.17,8.23905116]
[1767397535912,4.07206166,132.2,132.17,8.23905116]
[1767397539208,4.16039491,132.19,132.17,0.6734783]
[1767397540312,0.69698753,132.17,132.16,33.83745205]
[1767397540620,4.15952041,132.17,132.16,33.83745205]
[1767397544419,0.69698753,132.17,132.16,33.83745205]
[1767397546822,0.69698753,132.17,132.16,0.1]
[1767397547221,0.72381775,132.18,132.16,7.66658595]
[1767397547420,4.18635063,132.18,132.16,7.66658595]
[1767397547922,17.98635063,132.19,132.16,8.32712684]
[1767397550632,4.18635063,132.19,132.16,8.32712684]
[1767397550802,0.72381775,132.19,132.16,8.32712684]
[1767397551138,4.18635063,132.19,132.16,8.32712684]
[1767397551632,3.46253288,132.18,132.16,8.32712684]
[1767397552314,4.18635063,132.19,132.16,8.32712684]
[1767397555927,4.04724883,132.18,132.16,0.1]
[1767397556124,4.18495962,132.17,132.16,0.1]
[1767397557807,4.18495962,132.17,132.15,7.66689719]
[1767397558528,2.9402514,132.17,132.15,7.66689719]
[1767397562114,2.93006971,132.19,132.15,0.81962571]
[1767397562630,0.59617293,132.18,132.15,0.81962571]
[1767397564758,0.59617293,132.18,132.16,7.56658595]
[1767397567731,2.81399759,132.18,132.16,7.56658595]
[1767397568632,2.92890899,132.17,132.15,0.1]
[1767397568829,2.21782466,132.16,132.14,8.38698356]
[1767397569032,2.93006971,132.17,132.14,8.38698356]
[1767397571430,2.81399759,132.18,132.15,0.71962571]
[1767397573634,0.59617293,132.18,132.16,8.28621166]
[1767397573837,2.93006971,132.19,132.16,8.28621166]
[1767397574017,0.71224505,132.19,132.16,8.28621166]
[1767397575343,0.71224505,132.19,132.17,0.71962571]
[1767397580525,0.71224505,132.19,132.16,8.28621166]
[1767397583042,2.93006971,132.19,132.16,8.28621166]
[1767397585238,0.59617293,132.18,132.15,8.28659338]
[1767397588848,0.68404711,132.17,132.14,0.82466412]
[1767397589046,0.68344752,132.15,132.14,0.1]
[1767397589254,0.68344752,132.15,132.13,0.1]
[1767397591029,0.68344752,132.15,132.13,0.82296712]
[1767397591232,2.87839501,132.16,132.13,0.82296712]
[1767397592261,0.66057035,132.16,132.13,0.82296712]
[1767397592428,2.87839501,132.16,132.13,0.82296712]
[1767397594437,2.87839501,132.16,132.13,8.39126112]
[1767397594645,0.54833088,132.15,132.13,7.668294]
[1767397595034,0.54833088,132.15,132.13,0.1]
[1767397595348,0.54833088,132.15,132.13,0.82296712]
[1767397597935,0.54833088,132.15,132.13,8.39125071]
[1767397600461,0.54833088,132.15,132.13,7.66828359]
[1767397601064,0.65944795,132.14,132.13,0.1]
[1767397609263,2.87727261,132.14,132.12,0.1]
[1767397610172,0.65944795,132.14,132.12,0.1]
[1767397613672,0.45044206,132.13,132.12,0.1]
[1767397614773,0.45044206,132.13,132.09,8.39343717]
[1767397614970,2.66826672,132.13,132.1,0.72296712]
[1767397615774,0.45044206,132.13,132.1,0.72296712]
[1767397615956,0.45044206,132.13,132.11,0.72296712]
[1767397616276,0.45044206,132.13,132.11,0.22296712]
[1767397617367,0.45044206,132.13,132.09,7.6705958]
[1767397618277,0.45044206,132.13,132.1,0.72296712]
[1767397618479,0.45044206,132.13,132.1,8.29293432]
[1767397620685,0.67434551,132.15,132.11,0.72244858]
[1767397620886,4.14138073,132.14,132.11,0.72244858]
[1767397621571,0.67434551,132.15,132.11,0.72244858]
[1767397621774,4.14138073,132.15,132.11,0.72244858]
[1767397622156,6.04138073,132.15,132.11,0.72244858]
[1767397622363,4.14138073,132.15,132.11,0.72244858]
[1767397622683,4.14138073,132.14,132.11,8.29168325]
[1767397624071,4.10354073,132.14,132.11,8.29168325]
[1767397631983,4.10354073,132.14,132.12,0.72244858]
[1767397634386,4.14138073,132.15,132.12,8.29125156]
[1767397635182,6.04138073,132.15,132.12,8.29125156]
[1767397641587,5.36703522,132.15,132.13,0.72244858]
[1767397641782,6.04138073,132.15,132.12,8.29125156]
[1767397643485,6.04138073,132.15,132.13,0.72244858]
[1767397643673,6.04138073,132.15,132.12,8.29125156]
[1767397643872,2.57434551,132.15,132.12,8.29125156]
[1767397644072,6.04138073,132.15,132.12,8.29125156]
[1767397644272,5.36703522,132.15,132.13,0.72244858]
[1767397644688,6.04138073,132.15,132.13,0.72244858]
[1767397644888,6.04138073,132.15,132.12,8.29125156]
[1767397645085,1.9,132.15,132.13,0.72244858]
[1767397652501,5.36703522,132.15,132.13,0.72244858]
[1767397653406,1.9,132.15,132.13,0.72244858]
[1767397654087,1.9,132.15,132.13,8.29073874]
[1767397656584,2.56166646,132.15,132.13,0.69976859]
[1767397657084,6.02870168,132.15,132.13,0.69976859]
[1767397657507,2.56166646,132.15,132.13,0.69976859]
[1767397657707,2.56166646,132.15,132.13,8.26802318]
[1767397658204,14.15866783,132.14,132.1,7.56963253]
[1767397658502,3.46703522,132.13,132.1,7.56963253]
[1767397659307,4.12870168,132.13,132.1,7.56963253]
[1767397659489,7.56732163,132.15,132.1,7.56963253]
[1767397659490,4.12870168,132.14,132.1,7.56963253]
[1767397659798,0.66166646,132.14,132.11,7.56924017]
[1767397660004,4.12870168,132.15,132.11,0.69976859]
[1767397660208,5.06505014,132.14,132.11,0.69976859]
[1767397662209,8.53208536,132.14,132.12,0.69976859]
[1767397662404,0.66166646,132.12,132.09,8.37018193]
[1767397662710,4.12870168,132.12,132.09,8.37018193]
[1767397665911,0.66166646,132.12,132.09,8.37018193]
[1767397667610,0.66166646,132.12,132.1,0.69976859]
[1767397669911,0.66166646,132.12,132.1,8.26978697]
[1767397680622,0.66207865,132.13,132.1,8.26978697]
[1767397681414,2.8812654,132.15,132.11,0.68282862]
[1767397682417,2.8812654,132.15,132.1,26.49507515]
[1767397682418,0.66207865,132.13,132.1,27.17790377]
[1767397682927,0.66207865,132.13,132.11,0.68282862]
[1767397683223,2.8812654,132.14,132.11,0.68282862]
[1767397684137,2.8812654,132.14,132.11,8.25216444]
[1767397687929,0.66207865,132.14,132.11,8.25216444]
[1767397688119,2.8812654,132.14,132.11,8.25216444]
[1767397690832,0.66207865,132.14,132.12,0.68282862]
[1767397693414,0.66207865,132.14,132.11,8.25180056]
[1767397696031,0.66207865,132.15,132.12,0.68282862]
[1767397696206,2.8812654,132.15,132.12,0.68282862]
[1767397696720,0.66207865,132.15,132.12,0.68282862]
[1767397696922,2.8812654,132.15,132.12,0.68282862]
[1767397697234,0.66207865,132.14,132.12,8.25150691]
[1767397698526,0.66207865,132.14,132.11,0.68282862]
[1767397699037,2.8812654,132.14,132.11,0.68282862]
[1767397700436,0.66207865,132.14,132.11,0.68282862]
[1767397700733,0.66207865,132.14,132.11,8.25188191]
[1767397710046,0.70108547,132.15,132.12,0.68908293]
[1767397712246,0.70108547,132.15,132.12,8.25786404]
[1767397713430,24.30712294,132.16,132.13,0.68908293]
[1767397713732,5.77913382,132.15,132.13,0.68908293]
[1767397713918,0.70108547,132.15,132.13,0.68908293]
[1767397715450,0.70108547,132.15,132.12,8.25786404]
[1767397715646,0.70108547,132.15,132.12,0.68908293]
[1767397717034,2.92027222,132.14,132.11,0.68908293]
[1767397717356,0.70108547,132.13,132.11,0.68908293]
[1767397723233,0.70108547,132.13,132.11,8.25843215]
[1767397724462,0.02503021,132.12,132.1,8.25910564]
[1767397724960,2.84555527,132.13,132.1,8.25910564]
[1767397726877,0.62636852,132.13,132.1,8.25910564]
[1767397727374,8.1938456,132.15,132.12,0.68908293]
[1767397727660,12.94579105,132.14,132.12,0.68908293]
[1767397727855,2.21918675,132.14,132.12,0.68908293]
[1767397728061,2.31818675,132.14,132.12,0.68908293]
[1767397729560,2.31818675,132.15,132.12,8.25761715]
[1767397729763,13.56700532,132.14,132.11,8.25831804]
[1767397729943,2.3234077,132.13,132.11,7.56923511]
[1767397731065,0.10422095,132.13,132.11,7.56923511]
[1767397731566,0.10422095,132.13,132.11,0.68908293]
[1767397732466,2.3234077,132.13,132.11,0.68908293]
[1767397732653,2.21918675,132.13,132.11,8.25849368]
[1767397740167,0.62636852,132.14,132.11,8.25849368]
[1767397740345,2.84555527,132.14,132.11,8.25849368]
[1767397740663,4.0939057,132.14,132.11,8.25849368]
[1767397740863,0.099,132.13,132.1,0.67506181]
[1767397741170,4.0939057,132.14,132.11,0.67506181]
[1767397741766,0.62636852,132.15,132.12,0.67506181]
[1767397741947,5.08036121,132.14,132.12,0.67506181]
[1767397742148,0.62636852,132.15,132.12,0.67506181]
[1767397742447,5.08048557,132.14,132.12,0.67506181]
[1767397742646,4.0939057,132.15,132.12,0.67506181]
[1767397742969,0.62109483,132.13,132.09,33.56581838]
[1767397743158,0.62109483,132.13,132.1,0.67506181]
[1767397743467,4.08863201,132.13,132.11,0.67506181]
[1767397744158,3.56653718,132.13,132.11,0.67506181]
[1767397744349,7.56720353,132.15,132.09,8.3454471]
[1767397744350,9.16747768,132.12,132.09,8.3454471]
[1767397744549,4.08863201,132.12,132.09,8.3454471]
[1767397745372,0.62109483,132.12,132.09,8.3454471]
[1767397745574,5.07740181,132.12,132.1,0.67506181]
[1767397745753,8.54493899,132.12,132.1,0.67506181]
[1767397745953,14.44636852,132.13,132.1,0.67506181]
[1767397746270,3.46753718,132.12,132.1,0.67506181]
[1767397750660,3.56653718,132.12,132.09,8.3454471]
[1767397750873,0.62109483,132.11,132.09,7.67038529]
[1767397751868,4.0939057,132.12,132.09,8.3454471]
[1767397757975,4.0939057,132.12,132.1,0.67506181]
[1767397765182,4.0939057,132.12,132.09,0.77506181]
[1767397765495,0.62636852,132.12,132.09,0.77506181]
[1767397765677,4.0939057,132.12,132.09,0.77506181]
[1767397766487,22.01489122,132.13,132.1,0.67506181]
[1767397766671,3.46753718,132.12,132.1,0.67506181]
[1767397767593,3.56653718,132.12,132.1,0.67506181]
[1767397770800,0.099,132.12,132.1,0.67506181]
[1767397771399,25.4824284,132.13,132.1,0.67506181]
[1767397771900,17.9139057,132.13,132.1,8.2449163]
[1767397774205,13.82,132.13,132.11,0.68450918]
[1767397774496,0.62109483,132.13,132.11,0.68450918]
[1767397775701,4.08863201,132.13,132.11,0.68450918]
[1767397776493,3.46753718,132.13,132.11,0.68450918]
[1767397779184,4.0939057,132.14,132.11,0.68450918]
[1767397780702,3.46753718,132.14,132.11,0.68450918]
[1767397781685,3.56653718,132.14,132.11,0.68450918]
[1767397785807,3.46753718,132.14,132.11,0.68450918]
[1767397786000,17.90863201,132.15,132.12,0.68450918]
[1767397786311,25.47581896,132.15,132.12,0.68450918]
[1767397787007,22.00828178,132.15,132.12,0.68450918]
[1767397787212,25.47581896,132.15,132.12,0.68450918]
[1767397787397,22.00828178,132.15,132.12,0.68450918]
[1767397787596,25.47581896,132.15,132.12,0.68450918]
[1767397789110,3.46753718,132.14,132.12,0.68450918]
[1767397791014,25.47581896,132.15,132.12,0.68450918]
[1767397791391,3.46753718,132.14,132.12,0.68450918]
[1767397792414,25.47581896,132.15,132.12,0.68450918]
[1767397795118,3.46753718,132.14,132.12,0.68450918]
[1767397799328,25.47581896,132.15,132.12,0.68450918]
[1767397801419,14.44109483,132.15,132.12,8.25337009]
[1767397803405,5.05749518,132.14,132.12,8.25337009]
[1767397809527,14.44109483,132.15,132.12,8.25337009]
[1767397809926,16.6596307,132.15,132.12,8.25337009]
[1767397812333,24.22693433,132.15,132.12,0.68450918]
[1767397812535,7.28136874,132.14,132.12,0.68450918]
[1767397812833,2.21853587,132.14,132.12,0.68450918]
[1767397813009,16.6596307,132.15,132.12,0.68450918]
[1767397813210,5.0628343,132.14,132.12,0.68450918]
[1767397813816,5.16705525,132.14,132.12,0.68450918]
[1767397814017,5.0628343,132.14,132.12,0.68450918]
[1767397816137,24.23213242,132.15,132.12,0.68450918]
[1767397816338,5.063165,132.14,132.12,0.68450918]
[1767397816636,24.23213242,132.15,132.12,0.68450918]
[1767397816832,5.0630476,132.14,132.12,0.68450918]
[1767397817030,24.23213242,132.15,132.12,0.68450918]
[1767397817234,5.06321351,132.14,132.12,0.68450918]
[1767397817439,2.31753587,132.14,132.11,0.70214429]
[1767397818141,2.84490439,132.14,132.11,0.70214429]
[1767397818543,5.06322811,132.13,132.11,0.70214429]
[1767397818839,2.84490439,132.14,132.11,0.70214429]
[1767397819042,5.06306787,132.13,132.11,0.70214429]
[1767397819243,2.84490439,132.14,132.11,0.70214429]
[1767397819430,5.06439478,132.13,132.11,0.70214429]
[1767397819631,2.84490439,132.14,132.11,0.70214429]
[1767397819846,5.06439478,132.13,132.11,0.70214429]
[1767397820024,2.84490439,132.14,132.11,0.70214429]
[1767397820348,5.06439074,132.13,132.11,0.70214429]
[1767397820532,2.84490439,132.14,132.11,0.70214429]
[1767397820733,5.06416847,132.13,132.11,0.70214429]
[1767397821032,10.41264248,132.14,132.11,0.70214429]
[1767397821233,5.06413237,132.13,132.11,0.70214429]
[1767397821433,10.41264248,132.14,132.11,0.70214429]
[1767397821746,5.06408453,132.13,132.11,0.70214429]
[1767397821933,10.41264248,132.14,132.11,0.70214429]
[1767397822132,5.06349185,132.13,132.11,0.70214429]
[1767397822335,10.41264248,132.14,132.11,0.70214429]
[1767397822542,5.0633598,132.13,132.11,0.70214429]
[1767397822743,10.41264248,132.14,132.11,0.70214429]
[1767397823044,5.0633598,132.13,132.11,0.70214429]
[1767397823247,10.41264248,132.14,132.11,0.70214429]
[1767397823434,5.06352689,132.13,132.11,0.70214429]
[1767397823635,10.41264248,132.14,132.11,0.70214429]
[1767397823836,5.06253093,132.13,132.11,0.70214429]
[1767397824036,10.41264248,132.14,132.11,0.70214429]
[1767397824334,5.06260285,132.13,132.11,0.70214429]
[1767397824535,10.41264248,132.14,132.11,0.70214429]